bitfinex/quotes_ETHUSD_20240612
["timestamp","ask_amount","ask_price","bid_price","bid_amount"]
[1718206228153,3.33266493,3627.9,3627.1,2.75697]
[1718206228390,3.0,3627.8,3627.1,2.75697]
[1718206228696,0.57622493,3627.7,3627.1,2.75697]
[1718206229050,3.33284493,3627.7,3626.8,2.75722]
[1718206229374,7.2605,3627.5,3626.8,2.75722]
[1718206229559,5.00967007,3627.4,3626.5,2.75747]
[1718206230896,2.75708,3627.1,3626.2,2.7577]
[1718206231047,3.57622493,3627.0,3626.2,2.7577]
[1718206231247,2.78339493,3626.9,3626.2,2.7577]
[1718206231451,1.32668401,3626.8,3626.2,2.7577]
[1718206231759,0.02622493,3626.7,3626.2,2.7577]
[1718206232482,0.02622493,3626.7,3625.8,2.75794]
[1718206233151,8.20904514,3626.6,3625.3,2.75838]
[1718206233354,1.83242034,3626.5,3625.3,2.75838]
[1718206233592,1.43344514,3626.4,3625.3,2.75838]
[1718206233824,0.57622493,3626.3,3625.5,2.75817]
[1718206235209,0.57622493,3626.3,3624.7,9.73848]
[1718206235210,0.57622493,3626.3,3625.6,0.05516025]
[1718206235502,0.55,3626.5,3625.6,6.9398]
[1718206235818,0.57622493,3626.7,3626.2,2.75765]
[1718206236111,0.57622493,3626.7,3625.9,2.75793]
[1718206236112,1.43344514,3626.6,3625.9,2.75793]
[1718206236329,1.43344514,3626.6,3625.6,2.75814]
[1718206236330,0.02622493,3626.5,3625.6,2.75814]
[1718206236524,8.57784514,3626.4,3625.6,2.75814]
[1718206236798,3.57622493,3626.3,3625.6,2.75814]
[1718206237013,0.02622493,3626.2,3625.6,2.75814]
[1718206239084,4.21743007,3626.2,3625.3,2.75838]
[1718206239391,3.55,3626.1,3625.3,2.75838]
[1718206239769,3.55,3626.1,3625.3,0.275838]
[1718206240092,3.55,3626.1,3624.7,9.0106]
[1718206240093,3.0,3626.0,3624.7,9.0106]
[1718206240292,0.55,3625.9,3624.8,1.43344514]
[1718206240963,0.57622493,3626.2,3625.7,2.75806]
[1718206242065,0.55,3626.2,3625.9,2.75788]
[1718206244589,0.02622493,3626.7,3626.3,2.7576]
[1718206244766,0.57622493,3626.7,3626.3,2.7576]
[1718206245394,2.00967007,3626.7,3625.2,2.7584]
[1718206245898,2.00967007,3626.7,3625.3,2.75839]
[1718206246107,2.00967007,3626.7,3625.1,9.89967]
[1718206246108,2.00967007,3626.7,3625.4,1.265806]
[1718206246776,2.00967007,3626.7,3626.0,2.75782]
[1718206247506,2.75748,3626.5,3625.7,2.75805]
[1718206247803,7.413,3626.3,3625.7,2.75805]
[1718206248009,0.57622493,3626.2,3625.7,2.75805]
[1718206251876,0.57622493,3626.2,3625.9,2.7579]
[1718206255015,2.09423994,3626.2,3625.9,2.7579]
[1718206255999,5.09423994,3626.2,3625.9,2.7579]
[1718206256601,3.55,3626.2,3625.9,2.7579]
[1718206256791,0.55,3626.2,3625.9,2.7579]
[1718206256992,0.57622493,3626.4,3625.9,2.7579]
[1718206257418,3.0,3626.5,3625.3,7.2114]
[1718206257619,3.0,3626.5,3626.2,2.75769]
[1718206257933,1.01866,3626.4,3626.2,2.75769]
[1718206258231,3.0,3626.5,3626.2,2.75769]
[1718206259236,0.02622493,3626.4,3626.2,2.75769]
[1718206259384,0.57622493,3626.4,3626.2,2.75769]
[1718206259778,0.57622493,3626.4,3625.9,2.7579]
[1718206260415,0.57622493,3626.4,3626.1,2.75776]
[1718206260721,1.92824442,3626.4,3626.1,2.75776]
[1718206261037,4.92824442,3626.4,3626.1,2.75776]
[1718206261406,1.92824442,3626.4,3625.8,2.75795]
[1718206262723,1.92824442,3626.4,3626.0,2.75782]
[1718206262924,1.90201949,3626.4,3626.0,2.75782]
[1718206264758,1.90201949,3626.4,3626.2,2.75769]
[1718206266931,1.90201949,3626.4,3625.9,2.75789]
[1718206266932,1.23508688,3626.3,3625.9,2.75789]
[1718206267143,0.57622493,3626.2,3625.9,2.75789]
[1718206268147,0.55,3626.2,3625.9,2.75789]
[1718206268502,0.57622493,3626.4,3626.1,2.75771]
[1718206269046,0.55,3626.4,3626.1,2.75771]
[1718206269345,7.31,3626.9,3626.7,2.75726]
[1718206269508,8.85916301,3626.9,3626.7,2.75726]
[1718206271104,3.02622493,3626.8,3626.7,2.75726]
[1718206271336,3.57622493,3626.8,3626.7,2.75726]
[1718206272351,3.57622493,3626.8,3626.4,2.7575]
[1718206272545,0.57622493,3626.7,3626.4,2.7575]
[1718206272707,1.29853879,3626.6,3626.4,2.7575]
[1718206272904,6.9294,3626.4,3625.4,7.0451]
[1718206273110,3.02622493,3626.3,3625.4,7.0451]
[1718206273323,0.55,3626.2,3625.4,7.0451]
[1718206273544,0.02622493,3626.1,3625.4,7.0451]
[1718206274105,0.02622493,3626.1,3625.8,2.75795]
[1718206275814,1.22005192,3626.1,3625.8,2.75795]
[1718206276019,0.55,3626.0,3625.8,2.75795]
[1718206276835,0.57622493,3626.0,3625.2,0.57492282]
[1718206277260,0.02622493,3626.0,3625.2,0.57492282]
[1718206277930,0.02622493,3626.0,3625.6,2.75814]
[1718206280961,1.12305799,3626.1,3625.6,2.75814]
[1718206282277,2.59002749,3626.1,3625.6,2.75814]
[1718206282440,0.02622493,3626.0,3625.6,2.75814]
[1718206283963,7.4868,3625.9,3625.6,2.75814]
[1718206284138,0.57622493,3625.8,3625.6,2.75814]
[1718206284941,1.14928292,3625.8,3625.6,2.75814]
[1718206285260,0.69854263,3625.7,3625.6,2.75814]
[1718206285461,1.27476756,3625.7,3624.8,0.57492282]
[1718206285774,6.9266,3625.5,3625.2,2.75841]
[1718206285946,0.57622493,3625.4,3625.2,2.75841]
[1718206286130,1.59462618,3625.4,3625.2,2.75841]
[1718206286326,2.16768417,3625.4,3625.2,2.75841]
[1718206287166,1.59462618,3625.4,3625.2,2.75841]
[1718206287467,1.59462618,3625.4,3624.8,2.75872]
[1718206287661,0.57622493,3625.4,3625.0,2.7586]
[1718206290256,0.55,3625.4,3625.2,2.75842]
[1718206290470,0.55,3625.5,3625.2,2.75842]
[1718206290648,0.57622493,3625.7,3625.4,2.75828]
[1718206291669,0.55,3625.7,3625.4,2.75828]
[1718206293439,0.57622493,3625.7,3625.4,2.75828]
[1718206293682,0.55,3625.7,3625.4,2.75828]
[1718206295174,0.57622493,3625.7,3625.1,2.75848]
[1718206295341,1.70849073,3625.7,3625.1,2.75848]
[1718206296674,6.7593,3625.6,3625.1,2.75848]
[1718206296871,3.57622493,3625.5,3625.1,2.75848]
[1718206300378,6.33446493,3625.5,3624.8,2.75874]
[1718206300551,1.47990887,3625.4,3624.8,2.75874]
[1718206300751,0.57622493,3625.3,3624.8,2.75874]
[1718206301481,0.57622493,3625.3,3623.9,0.57492282]
[1718206301482,7.254,3625.1,3623.9,0.57492282]
[1718206301643,7.254,3624.4,3623.7,2.75954]
[1718206301842,0.02622493,3624.3,3623.7,2.75954]
[1718206302043,0.57622493,3624.3,3623.7,2.75954]
[1718206302456,0.57622493,3624.3,3623.3,7.3701]
[1718206302457,0.57622493,3624.3,3623.9,2.75942]
[1718206303076,0.55,3624.3,3624.1,2.75925]
[1718206303454,3.02622493,3624.7,3624.1,2.75925]
[1718206303455,0.55,3624.6,3624.1,2.75925]
[1718206303781,0.55,3624.6,3624.3,2.75908]
[1718206304240,3.0,3625.0,3624.7,2.75883]
[1718206304241,0.55,3624.9,3624.7,2.75883]
[1718206310182,7.10092493,3624.8,3623.6,3.33459282]
[1718206310389,0.55,3624.7,3623.6,2.75967]
[1718206310553,0.02622493,3624.6,3623.6,3.508524]
[1718206311148,0.02622493,3624.6,3624.2,2.75916]
[1718206313590,3.55,3624.7,3624.4,2.75901]
[1718206313788,0.55,3624.7,3624.4,2.75901]
[1718206313995,3.0,3625.1,3624.4,2.75901]
[1718206313996,0.55,3625.0,3624.4,2.75901]
[1718206314179,1.869001,3625.0,3624.6,2.75889]
[1718206314397,0.02622493,3624.9,3624.6,2.75889]
[1718206315500,1.45967007,3624.9,3624.2,2.75916]
[1718206315699,1.45872911,3624.8,3624.2,2.75916]
[1718206315879,0.02622493,3624.7,3624.2,2.75916]
[1718206320628,7.4176,3624.6,3623.9,2.7594]
[1718206320791,0.57622493,3624.5,3623.9,2.7594]
[1718206321106,0.57622493,3624.5,3623.6,2.75964]
[1718206321107,1.43344514,3624.4,3623.6,2.75964]
[1718206321315,1.81895194,3624.3,3623.6,2.75964]
[1718206321611,0.02622493,3624.2,3623.6,2.75964]
[1718206322378,2.78547493,3624.2,3623.6,2.75964]
[1718206322610,0.55,3624.1,3623.6,2.75964]
[1718206322774,0.02622493,3624.0,3623.6,2.75964]
[1718206323096,0.02622493,3624.0,3623.3,2.75985]
[1718206324016,0.02622493,3624.0,3623.5,2.75973]
[1718206325279,0.02622493,3624.0,3623.5,2.70973]
[1718206326745,6.90342493,3624.0,3623.5,2.70973]
[1718206327025,0.55,3623.9,3623.5,2.70973]
[1718206327517,0.55,3623.9,3623.7,2.75959]
[1718206332126,0.57622493,3623.9,3623.4,2.75977]
[1718206335013,0.57622493,3623.9,3623.4,3.58277]
[1718206342715,0.55,3623.9,3623.6,2.75964]
[1718206343520,0.55,3623.9,3623.6,3.58264]
[1718206344039,0.55,3623.9,3623.6,2.75964]
[1718206344259,1.94317993,3623.9,3623.6,2.75964]
[1718206348762,1.916955,3623.9,3623.6,2.75964]
[1718206348988,0.55,3623.9,3623.6,2.75964]
[1718206349632,0.55,3623.9,3623.7,2.75953]
[1718206349834,0.55,3623.9,3623.8,0.823]
[1718206350037,3.0,3624.4,3623.9,2.75945]
[1718206350232,0.57622493,3624.3,3623.9,2.75945]
[1718206350461,1.41816322,3624.2,3623.9,2.75945]
[1718206350663,0.55,3624.1,3623.9,2.75945]
[1718206350964,0.57622493,3624.1,3623.9,2.75945]
[1718206351185,3.57622493,3624.1,3623.9,2.75945]
[1718206351397,0.55,3624.1,3623.9,2.75945]
[1718206351884,0.57622493,3624.3,3623.9,2.75945]
[1718206352043,1.39193829,3624.2,3623.9,2.75945]
[1718206352395,0.57622493,3624.1,3623.9,2.75945]
[1718206353185,0.55,3624.1,3623.9,2.75945]
[1718206353405,0.57622493,3624.1,3623.9,2.75945]
[1718206354485,0.55,3624.1,3623.9,2.75945]
[1718206354861,0.55,3624.1,3623.8,0.823]
[1718206354862,0.55,3624.2,3624.1,2.7593]
[1718206355052,0.55,3624.3,3624.1,2.7593]
[1718206355252,0.55,3624.4,3624.3,2.75915]
[1718206355481,0.57305799,3624.9,3624.7,2.75883]
[1718206355998,0.57305799,3625.0,3624.7,2.75883]
[1718206356498,7.36855799,3625.1,3624.7,2.75883]
[1718206357102,3.59928292,3625.0,3624.7,2.75883]
[1718206357245,3.59928292,3625.0,3623.8,0.57492282]
[1718206357246,3.19118213,3624.9,3623.8,0.57492282]
[1718206357447,6.972,3624.7,3623.8,0.57492282]
[1718206357655,3.57622493,3624.6,3623.8,0.57492282]
[1718206357898,4.39922493,3624.6,3623.7,8.1796]
[1718206358203,1.28038699,3624.5,3623.7,8.1796]
[1718206358352,0.55,3624.4,3624.1,2.75925]
[1718206358547,0.55,3624.4,3624.1,3.58225]
[1718206358774,0.55,3624.5,3624.3,2.75909]
[1718206359453,0.57305799,3625.0,3624.6,2.75886]
[1718206359655,0.6932645,3624.9,3624.6,2.75886]
[1718206360359,1.45967007,3624.8,3624.3,2.75914]
[1718206360654,0.55,3624.7,3624.5,2.75894]
[1718206360853,0.6932645,3624.9,3624.5,2.75894]
[1718206361160,0.6932645,3624.9,3624.7,2.75882]
[1718206361894,0.42663225,3624.8,3624.7,2.75882]
[1718206362054,1.00285718,3624.8,3624.4,2.75902]
[1718206362249,0.02622493,3624.7,3624.4,2.75902]
[1718206362470,0.57622493,3624.7,3624.4,2.75902]
[1718206363221,0.55,3624.7,3624.4,2.75902]
[1718206363381,0.80159547,3624.7,3624.4,2.75902]
[1718206363719,0.55,3624.7,3624.4,2.75902]
[1718206363874,0.57305799,3625.0,3624.4,2.75902]
[1718206363875,0.57622493,3624.9,3624.4,2.75902]
[1718206364397,0.02622493,3624.9,3624.4,2.75902]
[1718206364560,0.55,3624.8,3624.4,2.75902]
[1718206364761,0.02622493,3624.9,3624.6,2.75891]
[1718206365081,0.41492829,3624.8,3624.6,2.75891]
[1718206365286,0.55,3624.7,3624.6,2.75891]
[1718206366375,0.57622493,3624.9,3624.6,2.75891]
[1718206366607,0.02622493,3624.9,3624.6,2.75891]
[1718206366776,0.41492829,3624.8,3624.6,2.75891]
[1718206366977,0.55,3624.7,3624.6,2.75891]
[1718206367289,0.57622493,3624.7,3624.6,2.75891]
[1718206368613,7.51282493,3624.7,3624.1,2.75923]
[1718206370132,1.43344514,3624.6,3624.1,2.75923]
[1718206370333,1.92783957,3624.5,3624.1,2.75923]
[1718206372404,0.55,3624.5,3624.3,2.75914]
[1718206372603,3.55,3624.6,3624.3,2.75914]
[1718206373201,0.57305799,3624.8,3624.6,2.75885]
[1718206373400,3.0,3624.9,3624.6,2.75885]
[1718206373606,0.57305799,3625.1,3624.6,2.75885]
[1718206373829,0.02622493,3625.0,3624.6,2.75885]
[1718206374000,0.02622493,3625.0,3624.8,2.75875]
[1718206374206,3.0,3625.1,3624.8,2.75875]
[1718206374409,3.57305799,3625.2,3624.8,2.75875]
[1718206374609,0.55,3625.1,3624.8,2.75875]
[1718206375712,0.57622493,3625.3,3624.8,2.75875]
[1718206375910,0.02622493,3625.2,3624.8,2.75875]
[1718206376250,0.02622493,3625.2,3625.1,2.75854]
[1718206376437,0.55,3625.3,3625.1,2.75854]
[1718206376947,8.23891599,3625.9,3625.0,0.823]
[1718206376948,0.57305799,3625.8,3625.4,2.75831]
[1718206377243,0.02622493,3625.7,3625.4,2.75831]
[1718206377633,0.02622493,3625.8,3625.4,2.75831]
[1718206377852,0.57305799,3625.9,3625.4,2.75831]
[1718206378058,0.57305799,3625.9,3625.4,3.58131]
[1718206378276,0.59928292,3626.0,3625.4,3.58131]
[1718206378472,0.59928292,3626.0,3625.6,2.7581]
[1718206378636,0.02622493,3626.0,3625.6,2.7581]
[1718206379369,1.10128622,3626.0,3625.6,2.7581]
[1718206379536,0.55,3625.9,3625.6,2.7581]
[1718206379738,0.84922493,3625.8,3625.3,2.75837]
[1718206380051,0.57622493,3625.7,3625.3,2.75837]
[1718206380555,8.41214514,3625.6,3624.9,2.75862]
[1718206380759,4.00736194,3625.5,3624.9,2.75862]
[1718206380978,4.00736194,3625.5,3624.6,0.823]
[1718206380979,2.25644514,3625.4,3624.6,2.7589]
[1718206381175,0.823,3625.2,3624.6,2.7589]
[1718206381360,0.02622493,3625.1,3624.6,2.7589]
[1718206381586,1.35126701,3625.0,3624.3,2.75912]
[1718206381875,6.89332493,3624.9,3624.3,2.75912]
[1718206382036,3.0,3624.8,3624.3,2.75912]
[1718206382235,0.02622493,3624.7,3624.3,2.75912]
[1718206382436,0.57622493,3624.7,3624.3,2.75912]
[1718206382664,2.09259664,3624.7,3624.3,2.75912]
[1718206383893,2.09259664,3624.7,3624.0,2.75934]
[1718206385715,2.75893,3624.6,3624.0,2.75934]
[1718206386037,2.75925,3624.2,3623.5,0.823]
[1718206386192,1.11045993,3624.1,3623.4,2.75981]
[1718206386397,4.66045993,3624.1,3623.4,2.75981]
[1718206389384,4.52245993,3624.1,3623.4,2.75981]
[1718206390183,3.57622493,3624.1,3623.4,2.75981]
[1718206390786,3.54822493,3624.1,3623.4,2.75981]
[1718206390987,3.54822493,3624.1,3623.0,6.9488]
[1718206390988,2.75946,3623.9,3623.0,9.70888]
[1718206391213,0.55,3623.8,3623.0,9.70888]
[1718206392689,0.55,3623.8,3623.2,2.75994]
[1718206392941,3.55,3623.8,3623.2,2.75994]
[1718206393237,0.55,3623.8,3623.2,2.75994]
[1718206397125,0.55,3623.8,3623.4,2.75981]
[1718206401989,0.55,3623.8,3623.7,2.75961]
[1718206402194,3.55,3624.0,3623.7,2.75961]
[1718206402395,0.55,3624.0,3623.7,2.75961]
[1718206402701,0.55,3624.1,3623.7,2.75961]
[1718206404593,0.55,3624.1,3623.0,2.76006]
[1718206404594,6.15704894,3624.1,3623.4,2.75979]
[1718206404790,3.0,3624.0,3623.4,2.75979]
[1718206405034,6.84,3623.8,3623.4,2.75979]
[1718206405195,0.55,3623.7,3623.4,2.75979]
[1718206406005,0.55,3623.7,3623.1,2.76001]
[1718206409027,3.30962,3623.7,3623.1,2.76001]
[1718206409349,7.624582,3623.7,3623.1,2.76001]
[1718206409511,7.624582,3623.7,3623.1,3.58301]
[1718206410351,6.30962,3623.7,3623.1,3.58301]
[1718206410647,6.30962,3623.7,3623.3,0.823]
[1718206413323,6.30962,3623.7,3623.1,3.58301]
[1718206414824,6.30962,3623.7,3623.3,0.823]
[1718206415455,3.55,3623.7,3623.3,3.58289]
[1718206415660,3.55,3623.7,3623.5,0.823]
[1718206415955,3.0,3623.7,3623.5,3.58274]
[1718206416120,3.0,3624.2,3623.5,3.58274]
[1718206416457,4.43344514,3624.2,3623.8,0.823]
[1718206417057,7.4754,3624.0,3623.1,0.823]
[1718206417252,4.98344514,3623.9,3623.1,0.823]
[1718206417551,4.98344514,3623.9,3622.9,2.76017]
[1718206417552,2.75987,3623.4,3622.6,2.76041]
[1718206417747,0.55,3623.3,3622.7,0.823]
[1718206417957,0.55,3623.3,3622.9,0.823]
[1718206419149,0.55,3623.3,3622.6,2.76041]
[1718206419150,3.55,3623.3,3622.6,2.76041]
[1718206420023,2.76007,3623.1,3622.5,0.823]
[1718206420328,0.55,3623.0,3622.4,0.823]
[1718206420845,0.55,3623.0,3622.3,9.63472]
[1718206421048,0.55,3623.0,3622.5,0.823]
[1718206421550,0.55,3623.0,3622.5,2.7605]
[1718206421721,0.55,3623.0,3622.5,3.5835]
[1718206422453,0.55,3623.0,3622.8,2.76029]
[1718206422663,0.55,3623.1,3622.8,2.76029]
[1718206422869,0.55,3623.2,3622.8,3.58329]
[1718206423467,0.55,3623.2,3623.1,2.76006]
[1718206423845,0.55,3623.5,3623.1,2.76006]
[1718206426257,4.19329514,3623.4,3622.8,2.76024]
[1718206426451,3.55,3623.3,3622.8,2.76024]
[1718206428879,7.0805,3623.2,3622.8,2.76024]
[1718206429182,3.55,3623.1,3622.8,2.76024]
[1718206430391,3.55,3623.1,3622.5,2.76051]
[1718206430701,3.55,3623.1,3622.6,0.823]
[1718206431426,4.19362514,3623.0,3622.2,2.76072]
[1718206431580,0.55,3622.9,3622.5,0.823]
[1718206431766,1.98344514,3622.9,3622.5,0.823]
[1718206432167,0.55,3622.9,3622.6,2.76043]
[1718206432390,0.55,3623.0,3622.6,2.76043]
[1718206432585,0.55,3623.1,3622.6,2.76043]
[1718206433480,0.55,3623.1,3622.8,2.76028]
[1718206434006,0.55,3623.2,3622.8,2.76028]
[1718206439796,1.98344514,3623.2,3622.8,2.76028]
[1718206439984,1.55312631,3623.1,3622.8,2.76028]
[1718206440185,0.55,3623.0,3622.8,2.76028]
[1718206440806,0.55,3623.1,3622.8,2.76028]
[1718206445878,0.55,3623.2,3623.1,2.76006]
[1718206446209,0.57305799,3623.4,3623.1,2.76006]
[1718206446816,0.57305799,3623.5,3623.1,2.76006]
[1718206447520,0.55,3623.4,3623.1,2.76006]
[1718206448076,0.55,3623.4,3623.1,3.58306]
[1718206448400,0.55,3623.4,3623.3,2.75991]
[1718206449330,0.55,3623.5,3623.3,2.75991]
[1718206450385,1.12305799,3623.5,3623.0,2.76007]
[1718206450586,0.138,3623.3,3623.2,2.75998]
[1718206450782,0.688,3623.3,3623.2,2.75998]
[1718206452278,0.688,3623.3,3623.2,2.73198]
[1718206452953,0.688,3623.3,3622.7,7.8866]
[1718206452954,0.688,3623.3,3622.9,2.76021]
[1718206453151,0.55,3623.2,3622.9,2.76021]
[1718206457631,1.12305799,3623.2,3622.9,2.76021]
[1718206457851,0.57305799,3623.1,3622.9,2.76021]
[1718206458184,0.55,3623.0,3622.9,2.76021]
[1718206458556,0.55,3623.0,3622.6,2.76039]
[1718206459187,1.12305799,3623.1,3622.6,2.76039]
[1718206459492,1.12305799,3623.1,3622.8,2.76028]
[1718206459867,0.55,3623.1,3622.8,2.76028]
[1718206460591,2.77123094,3623.1,3622.8,2.76028]
[1718206460887,0.57305799,3623.0,3622.8,2.76028]
[1718206461087,0.55,3622.9,3622.8,2.76028]
[1718206462482,1.12305799,3623.0,3622.8,2.76028]
[1718206464783,1.12305799,3623.0,3622.5,2.76046]
[1718206464984,0.57305799,3622.9,3622.5,2.76046]
[1718206465182,0.55,3622.8,3622.5,2.76046]
[1718206466805,0.55,3622.8,3622.2,9.66471]
[1718206466806,0.91308179,3622.8,3622.2,9.66469]
[1718206466977,7.85555799,3622.7,3622.2,2.76069]
[1718206467363,1.12305799,3622.6,3622.2,2.76069]
[1718206469596,4.12305799,3622.6,3622.2,2.76069]
[1718206470814,0.57305799,3622.5,3622.2,2.76069]
[1718206471015,0.55,3622.4,3622.2,2.76069]
[1718206471597,0.55,3622.5,3622.2,2.76069]
[1718206471796,2.31449719,3622.5,3622.2,2.76069]
[1718206472232,0.55,3622.5,3622.2,2.76069]
[1718206476215,0.55,3622.6,3622.2,2.76069]
[1718206486885,2.2,3622.7,3622.2,2.76069]
[1718206489095,0.55,3622.6,3622.2,2.76069]
[1718206489470,0.57305799,3622.8,3622.6,2.76044]
[1718206489804,0.57305799,3623.2,3623.1,2.76006]
[1718206490005,0.138,3623.3,3623.2,6.7826]
[1718206490227,0.138,3623.3,3623.2,7.819166]
[1718206491383,0.138,3623.3,3623.2,6.7826]
[1718206491583,0.138,3623.3,3623.1,2.76006]
[1718206492219,0.138,3623.3,3622.2,3.62310424]
[1718206492220,0.138,3623.3,3622.8,2.76027]
[1718206492381,0.55,3623.2,3622.8,2.76027]
[1718206499881,0.55,3623.2,3623.0,2.76011]
[1718206501764,1.98344514,3623.2,3622.5,2.76045]
[1718206502078,4.19353514,3623.1,3622.5,2.76045]
[1718206502233,3.55,3623.0,3622.5,2.76045]
[1718206503664,3.0,3622.9,3622.5,2.76045]
[1718206503868,0.55,3622.8,3622.5,2.76045]
[1718206504076,3.55,3623.0,3622.5,2.76045]
[1718206504228,3.55,3623.0,3622.5,3.58345]
[1718206504424,0.55,3623.0,3622.5,3.58345]
[1718206506451,1.85005031,3623.0,3622.5,2.76045]
[1718206506647,1.85005031,3623.0,3622.5,3.58345]
[1718206506648,3.55,3623.0,3622.5,3.58345]
[1718206506849,0.55,3623.0,3622.5,3.58345]
[1718206507780,0.55,3623.0,3622.5,2.76045]
[1718206513564,0.522,3623.0,3622.5,2.76045]
[1718206513934,3.522,3623.0,3622.5,2.76045]
[1718206514277,5.54971401,3623.0,3622.5,2.76045]
[1718206516838,5.54971401,3623.0,3621.8,3.33591282]
[1718206516839,8.55694514,3622.9,3622.2,2.76068]
[1718206517034,4.373,3622.8,3622.2,2.76068]
[1718206517257,1.43344514,3622.7,3622.2,2.76068]
[1718206517459,1.12305799,3622.6,3622.2,2.76068]
[1718206517691,0.57305799,3622.5,3622.2,2.76068]
[1718206517866,0.55,3622.4,3622.2,2.76068]
[1718206518171,3.55,3622.6,3622.2,2.76068]
[1718206518975,0.55,3622.6,3622.2,2.76068]
[1718206520257,3.57305799,3622.7,3622.4,3.58359]
[1718206520460,0.57305799,3622.7,3622.4,3.58359]
[1718206520694,3.57305799,3622.9,3622.4,3.58359]
[1718206520994,0.55,3622.8,3622.4,3.58359]
[1718206521773,0.55,3622.8,3622.7,8.184]
[1718206521774,0.57305799,3622.8,3622.7,8.184]
[1718206521970,0.57305799,3622.8,3622.7,10.94437]
[1718206522170,1.43767251,3623.4,3623.1,2.76006]
[1718206522171,0.57305799,3623.3,3623.1,2.76006]
[1718206522403,1.31858602,3624.0,3622.7,10.94437]
[1718206522404,0.57305799,3623.7,3623.3,2.75984]
[1718206522568,0.85958699,3623.9,3623.3,2.75984]
[1718206522569,0.57305799,3623.8,3623.3,2.75984]
[1718206522775,0.57305799,3623.7,3623.3,2.75984]
[1718206523163,0.57305799,3623.7,3623.2,0.823]
[1718206523490,0.57305799,3623.7,3622.7,10.12137]
[1718206523491,0.57305799,3623.8,3623.5,2.75976]
[1718206523861,0.57305799,3623.9,3623.7,2.75958]
[1718206524346,0.57305799,3624.0,3623.7,2.75958]
[1718206525096,1.12305799,3623.9,3623.7,2.75958]
[1718206525261,0.55,3623.9,3623.7,2.75958]
[1718206526180,2.70735415,3623.9,3623.1,2.76003]
[1718206526403,3.0,3623.8,3623.1,2.76003]
[1718206526620,0.55,3623.7,3623.1,2.76003]
[1718206526770,1.12305799,3623.7,3623.1,2.76003]
[1718206527169,0.55,3623.7,3623.1,2.76003]
[1718206527791,0.55,3623.7,3623.3,2.75987]
[1718206529522,3.0,3623.8,3623.5,2.75969]
[1718206529811,0.85958699,3624.3,3623.5,2.75969]
[1718206529812,3.57305799,3624.3,3623.5,2.75969]
[1718206530014,3.10501484,3624.2,3623.5,2.75969]
[1718206530336,2.75949,3623.9,3623.0,9.99679]
[1718206530626,5.80644514,3623.8,3623.2,2.75995]
[1718206530832,6.52199994,3623.8,3623.2,2.75995]
[1718206531830,7.09505793,3623.8,3623.2,2.75995]
[1718206533315,0.57305799,3623.7,3623.2,2.75995]
[1718206533489,0.55,3623.6,3623.2,2.75995]
[1718206533691,2.44441349,3623.6,3622.9,2.76018]
[1718206533878,0.823,3623.4,3622.9,2.76018]
[1718206534797,3.0,3623.5,3622.9,2.76018]
[1718206534999,5.19447148,3623.6,3622.9,2.76018]
[1718206535332,4.66319084,3623.5,3622.9,2.76018]
[1718206535478,3.0,3623.4,3622.9,2.76018]
[1718206536501,2.76009,3623.1,3622.3,2.76062]
[1718206536702,3.823,3623.0,3622.3,2.76062]
[1718206538800,3.0,3623.0,3622.3,3.58362]
[1718206542340,3.0,3623.0,3622.5,2.7605]
[1718206543093,3.0,3623.0,3622.7,2.76034]
[1718206543305,3.0,3623.3,3622.7,2.76034]
[1718206543540,4.19347514,3623.2,3622.4,2.76055]
[1718206543749,3.0,3623.1,3622.4,2.76055]
[1718206544056,4.43344514,3623.1,3622.4,2.76055]
[1718206546713,3.0,3623.1,3622.4,0.3695517]
[1718206546929,0.57305799,3623.3,3622.4,0.3695517]
[1718206546930,0.57305799,3623.3,3622.8,2.76025]
[1718206547239,1.43344514,3623.3,3622.8,2.76025]
[1718206547614,3.57305799,3623.5,3623.0,2.7601]
[1718206547803,5.00650313,3623.5,3623.0,2.7601]
[1718206548008,4.43344514,3623.5,3623.0,2.7601]
[1718206548336,5.00650313,3623.5,3623.0,2.7601]
[1718206548501,4.43344514,3623.5,3623.0,2.7601]
[1718206548957,3.0,3623.5,3623.3,2.75988]
[1718206549133,3.0,3623.6,3623.3,2.75988]
[1718206549305,3.57305799,3623.8,3623.3,2.75988]
[1718206549640,4.43344514,3623.8,3623.3,2.75988]
[1718206549937,5.00650313,3623.8,3623.3,2.75988]
[1718206550304,4.43344514,3623.8,3623.3,2.75988]
[1718206552456,1.43344514,3623.8,3623.3,2.75988]
[1718206554839,2.10235415,3623.8,3623.3,2.75988]
[1718206555043,5.10235415,3623.8,3623.3,2.75988]
[1718206555434,5.92535415,3623.8,3623.3,2.75988]
[1718206555766,6.49841214,3623.8,3623.3,2.75988]
[1718206557440,5.92535415,3623.8,3623.3,2.75988]
[1718206557963,6.49841214,3623.8,3623.3,2.75988]
[1718206560215,0.823,3623.6,3622.4,6.8896]
[1718206560353,8.88470313,3623.5,3622.7,2.76031]
[1718206560556,3.0,3623.4,3622.7,2.76031]
[1718206561547,4.19336514,3623.3,3622.7,2.76031]
[1718206561747,5.74012745,3623.3,3622.7,2.76031]
[1718206561955,3.0,3623.2,3622.7,2.76031]
[1718206562806,3.57305799,3623.2,3622.7,2.76031]
[1718206563085,3.57305799,3623.2,3622.4,6.8896]
[1718206563086,4.39605799,3623.2,3622.4,9.65015]
[1718206563455,4.39605799,3623.2,3622.4,2.76055]
[1718206563456,0.57305799,3623.1,3622.4,2.76055]
[1718206563857,4.39605799,3623.2,3622.4,2.62255]